Workbook

Sheet Order
A1: dk;kZy; jktdh; mPp ek/;fed fo|ky; bUnjokM+k ¼jkuh½] ftyk&ikyh
A2: dzekad &jkmekfo@bUnjokM+k@,lhih@2020@ fnuakd&
A3: foRr foHkkx ds vkns'k dzekad&F.15(1)FD(RULES) 2017 t;iqj fnukad 09-12-2017 ,oa lifBr fnukad 30-10-2017 ds fu;e 14] vuqlwph&VI ds fcUnq la[;k 02] vuqlwph&1 ¼ikVZ ,½ esa of.kZr LEVEL IN PAY MATRIX ,oa n'kkZ;s x;s izko/kkukuqlkj deZpkjh Jherh papy pkS/kjh ds uke lEeq[k vafdr frfFk ls ,-lh-ih-(ASSURED CAREER PROGRESSION) dh Lohd`fr iznku dh tkrh gS muds uke ds lEeq[k vafdr Lohd`r jfuax is iS.M @is&eSfVªDl ysoy esas osru fu/kkZj.k vf/klwpuk ds fu;e 14 ,oa vuqlwph&VI¼fu;e 14½ esa funsZf'kr izfdz;k ds vuqlkj Lohd`fr iznku dh tkrh gSA ,-lh-ih- fnukad 12-11-2018 ls 31-10-2019 dh vof/k dk ,fj;j fu;ekuqlkj ns; gksxkA
A4: dz-l- | B4: uke deZpkjh e; in | C4: inLFkkiu LFkku@fo|ky; dk uke | D4: ,lhih Lohd`fr vkns'k | F4: ,lhih vof/k | G4: ,lhih frfFk Lohd`fr frfFk | H4: fnukd 12-11-2018 dks ,lhih ls iwoZ osrueku o osru | J4: fnukd 12-11-2018 dks ,lhih Lohd`fr i'pkr~ fu;r osrueku o osru | L4: vxkeh osru o`f} fnukad
D5: dzekad | E5: fnukad | H5: PAY MATRIX LEVEL | I5: BASIC | J5: PAY MATRIX LEVEL | K5: BASIC
A6: 1 | B6: Jherh papy pkS/kjh | C6: jkmekfo nM+koV | D6: 1876@ 1890 | E6: 2019-08-21 | F6: 27 o"khZ; | G6: 2018-11-12 | H6: L-12 | I6: 59500 | J6: L-13 | K6: 61500 | L6: 01&07&2019
K9: iz/kkukpk;Z
K10: jktdh; mPp ek/;fed fo|ky;
K11: bUnjokM+k] ikyh
A12: izfrfyfi%& lwpukFkZ ,oa vko';d dk;Zokgh gsrq izsf"kr gS&
A13: 1& midks"k@midks"kkf/kdkjh ikyhA
A14: 2& lacaf/kr deZpkjh Jh@Jherh@------------------------------A
A15: 3& dk;kZy; izfr-A
K17: iz/kkukpk;Z
K18: jktdh; mPp ek/;fed fo|ky;
K19: bUnjokM+k] ikyh

Sheet Arrear Sheet
C1: PEEO OFFICE / Principal, Govt. Sr. Secondary School INDERWARA, Rani (Pali)
B3: Employee Name : | E3: Chanchal Choudhary | H3: Post : | I3: Sr. Teacher | K3: Posting Place : | N3: GSSS INDERWARA
B4: ACP Arrear
A7: S.N | B7: MONTH | C7: Pay is to be receive | G7: Pay , salary has been Received | K7: Salary Difference | O7: NPS Ded. | P7: INCOME TAX (TDS) | Q7: TOTAL DED. | R7: NET PAY | S7: Bill No & Date | T7: Enc.Date
C8: Pay | D8: DA | E8: HRA | F8: TOTAL | G8: Pay | H8: DA | I8: HRA | J8: TOTAL | K8: Pay | L8: DA | M8: HRA | N8: TOTAL | AG8: This Programme Developed by: HEERALAL JAT
A9: 1 | B9: 1-12-18 to 11-12-18 | C9: =ROUND(Order!I6/31*11,0) -> 21113 | D9: =ROUND((C9*9%),0) -> 1900 | E9: =ROUND((C9*8%),0) -> 1689 | F9: =SUM(C9:E9) -> 24702 | G9: =ROUND(Order!I6/31*11,0) -> 21113 | H9: =ROUND((G9*9%),0) -> 1900 | I9: =ROUND((G9*8%),0) -> 1689 | J9: =SUM(G9:I9) -> 24702 | K9: =IF(AND(C9="",G9=""),"",C9-G9) -> 0 | L9: =IF(AND(D9=""),"",IF(AND(H9=""),"",D9-H9)) -> 0 | M9: 0 | N9: =IF(AND(F9="",J9=""),"",SUM(F9-J9)) -> 0 | O9: =IF(AND(C9=""),"",IF(AND(N9=""),"",ROUND((K9+L9)*10%,0))) -> 0 | P9: =IF(AND(N9=""),"",ROUND((N9*10%),0)) -> 0 | Q9: =IF(AND(N9=""),"",SUM(O9,P9)) -> 0 | R9: =IF(AND(N9=""),"",IF(AND(C9=""),"",IF(AND(Q9=""),N9,N9-Q9))) -> 0 | V9: =#REF!-#REF! ->  | AC9: ije~ iwT; xq:nso oklqnso th egkjkt dks ueu | AG9: Sr. Teacher
B10: 12-12-18 to 31-12-18 | C10: =ROUND(Order!K6/31*20,0) -> 39677 | D10: =ROUND((C10*9%),0) -> 3571 | E10: =ROUND((C10*8%),0) -> 3174 | F10: =SUM(C10:E10) -> 46422 | G10: =ROUND(Order!I6/31*20,0) -> 38387 | H10: =ROUND((G10*9%),0) -> 3455 | I10: =ROUND((G10*8%),0) -> 3071 | J10: =SUM(G10:I10) -> 44913 | K10: =IF(AND(C10="",G10=""),"",C10-G10) -> 1290 | L10: 116 | M10: 103 | N10: =IF(AND(F10="",J10=""),"",SUM(F10-J10)) -> 1509 | O10: =IF(AND(C10=""),"",IF(AND(N10=""),"",ROUND((K10+L10)*10%,0))) -> 141 | P10: =IF(AND(N10=""),"",ROUND((N10*10%),0)) -> 151 | Q10: =IF(AND(N10=""),"",SUM(O10,P10)) -> 292 | R10: =IF(AND(N10=""),"",IF(AND(C10=""),"",IF(AND(Q10=""),N10,N10-Q10))) -> 1217
A11: 2 | B11: 2019-01-01 | C11: =Order!K6 -> 61500 | D11: =ROUND((C11*12%),0) -> 7380 | E11: =ROUND((C11*8%),0) -> 4920 | F11: =IF(AND($E$3=""),"",IF(AND(C11=""),"",SUM(C11:E11))) -> 73800 | G11: =Order!I6 -> 59500 | H11: =ROUND((G11*12%),0) -> 7140 | I11: =ROUND((G11*8%),0) -> 4760 | J11: =IF(AND($E$3=""),"",IF(AND(G11=""),"",SUM(G11:I11))) -> 71400 | K11: =IF(AND(C11="",G11=""),"",C11-G11) -> 2000 | L11: 240 | M11: 160 | N11: =IF(AND(F11="",J11=""),"",SUM(F11-J11)) -> 2400 | O11: =IF(AND(C11=""),"",IF(AND(N11=""),"",ROUND((K11+L11)*10%,0))) -> 224 | P11: =IF(AND(N11=""),"",ROUND((N11*10%),0)) -> 240 | Q11: =IF(AND(N11=""),"",SUM(O11,P11)) -> 464 | R11: =IF(AND(N11=""),"",IF(AND(C11=""),"",IF(AND(Q11=""),N11,N11-Q11))) -> 1936 | V11: =ROUND(#REF!*#REF!/#REF!,0) ->  | AG11: Government Aadras Senior Secondary School INDERWARA, Rani PALI
A12: 3 | B12: 2019-02-01 | C12: =C11 -> 61500 | D12: =ROUND((C12*12%),0) -> 7380 | E12: =ROUND((C12*8%),0) -> 4920 | F12: =IF(AND($E$3=""),"",IF(AND(C12=""),"",SUM(C12:E12))) -> 73800 | G12: =G11 -> 59500 | H12: =ROUND((G12*12%),0) -> 7140 | I12: =ROUND((G12*8%),0) -> 4760 | J12: =IF(AND($E$3=""),"",IF(AND(G12=""),"",SUM(G12:I12))) -> 71400 | K12: =IF(AND(C12="",G12=""),"",C12-G12) -> 2000 | L12: 240 | M12: 160 | N12: =IF(AND(F12="",J12=""),"",SUM(F12-J12)) -> 2400 | O12: =IF(AND(C12=""),"",IF(AND(N12=""),"",ROUND((K12+L12)*10%,0))) -> 224 | P12: =IF(AND(N12=""),"",ROUND((N12*10%),0)) -> 240 | Q12: =IF(AND(N12=""),"",SUM(O12,P12)) -> 464 | R12: =IF(AND(N12=""),"",IF(AND(C12=""),"",IF(AND(Q12=""),N12,N12-Q12))) -> 1936 | V12: =ROUND(#REF!*V9/#REF!,0) ->  | AG12: V./P. = Chandawal Nagar , Th. - Sojat , Dist-- Pali
A13: 4 | B13: 2019-03-01 | C13: =C12 -> 61500 | D13: 7380 | E13: =ROUND((C13*8%),0) -> 4920 | F13: =IF(AND($E$3=""),"",IF(AND(C13=""),"",SUM(C13:E13))) -> 73800 | G13: =G12 -> 59500 | H13: 7140 | I13: =ROUND((G13*8%),0) -> 4760 | J13: =IF(AND($E$3=""),"",IF(AND(G13=""),"",SUM(G13:I13))) -> 71400 | K13: =IF(AND(C13="",G13=""),"",C13-G13) -> 2000 | L13: =IF(AND(D13=""),"",IF(AND(H13=""),"",D13-H13)) -> 240 | M13: =IF(AND(E13=""),"",IF(AND(I13=""),"",E13-I13)) -> 160 | N13: =IF(AND(F13="",J13=""),"",SUM(F13-J13)) -> 2400 | O13: =IF(AND(C13=""),"",IF(AND(N13=""),"",ROUND((K13+L13)*10%,0))) -> 224 | P13: =IF(AND(N13=""),"",ROUND((N13*10%),0)) -> 240 | Q13: =IF(AND(N13=""),"",SUM(O13,P13)) -> 464 | R13: =IF(AND(N13=""),"",IF(AND(C13=""),"",IF(AND(Q13=""),N13,N13-Q13))) -> 1936 | V13: =SUM(V11:V12) ->  | AG13: heeralaljatchandawal@gmail.com
A14: 5 | B14: 2019-04-01 | C14: 61500 | D14: 7380 | E14: 4920 | F14: 73800 | G14: 59500 | H14: 7140 | I14: 4760 | J14: 71400 | K14: 2000 | L14: 240 | M14: 160 | N14: 2400 | O14: 224 | P14: 240 | Q14: 464 | R14: 1936 | AG14: Contect time = 04:30 P.M. to 7:30 P.M.
A15: 6 | B15: 2019-05-01 | C15: 61500 | D15: 7380 | E15: 4920 | F15: 73800 | G15: 59500 | H15: 7140 | I15: 4760 | J15: 71400 | K15: 2000 | L15: 240 | M15: 160 | N15: 2400 | O15: 224 | P15: 240 | Q15: 464 | R15: 1936
A16: 7 | B16: 2019-06-01 | C16: 61500 | D16: 7380 | E16: 4920 | F16: 73800 | G16: 59500 | H16: 7140 | I16: 4760 | J16: 71400 | K16: 2000 | L16: 240 | M16: 160 | N16: 2400 | O16: 224 | P16: 240 | Q16: 464 | R16: 1936
A17: 8 | B17: 2019-07-01 | C17: =MROUND(C16*1.03,100) -> 63300 | D17: =ROUND((C17*17%),0) -> 10761 | E17: 5064 | F17: 79125 | G17: =MROUND(G16*1.03,100) -> 61300 | H17: =ROUND((G17*17%),0) -> 10421 | I17: 4904 | J17: 76625 | K17: 2000 | L17: 340 | M17: 160 | N17: 2500 | O17: 234 | P17: 250 | Q17: 484 | R17: 2016
A18: 9 | B18: 2019-08-01 | C18: 63300 | D18: =ROUND((C18*17%),0) -> 10761 | E18: 5064 | F18: 79125 | G18: 61300 | H18: =ROUND((G18*17%),0) -> 10421 | I18: 4904 | J18: 76625 | K18: 2000 | L18: 340 | M18: 160 | N18: 2500 | O18: 234 | P18: 250 | Q18: 484 | R18: 2016
A19: 10 | B19: 2019-09-01 | C19: 63300 | D19: 10761 | E19: 5064 | F19: 79125 | G19: 61300 | H19: 10421 | I19: 4904 | J19: 76625 | K19: 2000 | L19: 340 | M19: 160 | N19: 2500 | O19: 234 | P19: 250 | Q19: 484 | R19: 2016
A20: 11 | B20: 2019-10-01 | C20: 63300 | D20: 10761 | E20: 5064 | F20: 79125 | G20: 61300 | H20: 10421 | I20: 4904 | J20: 76625 | K20: 2000 | L20: 340 | M20: 160 | N20: 2500 | O20: 234 | P20: 250 | Q20: 484 | R20: 2016
A21: Grand Total | C21: =SUM(C9:C20) -> 682990 | D21: =SUM(D9:D20) -> 92795 | E21: 54639 | F21: 830424 | G21: 661700 | H21: 89879 | I21: 52936 | J21: 804515 | K21: 21290 | L21: 2916 | M21: 1703 | N21: 25909 | O21: 2421 | P21: 2591 | Q21: 5012 | R21: =SUM(R9:R20) -> 20897
V22: =ROUND((G9+H9)*10%,0) -> 2301
H23: In words : | K23: ( Rs - Twenty Thousand Eight Hundred Ninty Seven ) | V23: =ROUND((G11+H11)*10%,0) -> 6664
B24: S.R. | I24: Date :
B25: For Copying And Necessary Action | Q25: (MISHRI LAL )
A26: 1 | B26: Treasury Officer / Deputy treasury Officer | Q26: Seal and Signature
A27: 2 | B27: Related Employee Sh./Smt./Mis. | F27: =E3&", "&I3 -> Chanchal Choudhary, Sr. Teacher | Q27: Government Senior Secondary School INDERWARA, Rani PALI
A28: 3 | B28: File Register
